fUST/lending_fUST_20250228
["ID","MTS","AMOUNT","RATE_DAILY","PERIOD"]
[354835653,1740729097159,-507.38,0.004,120]
[354835654,1740729097169,-536.87,0.004,120]
[354835655,1740729097179,-746.73,0.004,120]
[354835656,1740729097189,-1089.7,0.004,120]
[354835657,1740729097199,-2092.1,0.004,120]
[354835658,1740729097210,-500.0,0.004,120]
[354835659,1740729097220,-500.0,0.004,120]
[354835660,1740729097230,-1310.9,0.004,120]
[354835661,1740729097240,-313.06636506,0.00405644,120]
[354835662,1740729097250,-313.06636506,0.00407589,120]
[354835663,1740729097260,-164.51,0.00408,120]
[354835664,1740729097270,-313.06636506,0.00409562,120]
[354835665,1740729097280,-313.06636506,0.00411507,120]
[354835666,1740729097294,-313.06636506,0.00413479,120]
[354835667,1740729097304,-313.06636506,0.00415452,120]
[354835668,1740729097314,-313.06636506,0.00417397,120]
[354835669,1740729097325,-313.06636506,0.0041937,120]
[354835670,1740729097335,-313.06636506,0.00421315,120]
[354835671,1740729097345,-313.06636506,0.00423288,120]
[354835672,1740729097355,-493.1,0.00424657,120]
[354835673,1740729097365,-500.0,0.00424657,120]
[354835674,1740729097375,-500.0,0.00424657,120]
[354835675,1740729097385,-501.39,0.00424657,120]
[354835676,1740729097395,-500.0,0.00424657,120]
[354835677,1740729097405,-500.0,0.00424657,120]
[354835678,1740729097415,-531.78,0.00424657,120]
[354835679,1740729097424,-500.0,0.00424657,120]
[354835680,1740729097433,-387.43230649,0.00424657,120]
[354835681,1740729097443,-1899.72,0.00424657,120]
[354835682,1740729097452,-864.26,0.00424657,120]
[354835683,1740729097462,-807.93,0.00424657,120]
[354835684,1740729097472,-948.86,0.00424657,120]
[354835685,1740729097481,-500.0,0.00424657,120]
[354835686,1740729097491,-1043.41,0.00424657,120]
[354835687,1740729097500,-500.0,0.00424657,120]
[354835688,1740729097510,-1408.38,0.00424657,120]
[354835689,1740729097521,-871.78,0.00424657,120]
[354835690,1740729097530,-851.03,0.00424657,120]
[354835691,1740729097545,-526.84,0.00424657,120]
[354835692,1740729097554,-694.99,0.00424657,120]
[354835693,1740729097564,-500.0,0.00424657,120]
[354835694,1740729097574,-539.3,0.00424657,120]
[354835695,1740729097584,-938.58,0.00424657,120]
[354835696,1740729097594,-500.0,0.00424657,120]
[354835697,1740729097604,-151.01,0.00424657,120]
[354835698,1740729097615,-708.44,0.00424657,120]
[354835699,1740729097624,-520.73,0.00424657,120]
[354835700,1740729097635,-500.0,0.00424657,120]
[354835701,1740729097644,-676.19,0.00424657,120]
[354835702,1740729097654,-1222.28,0.00424657,15]
[354835703,1740729097663,-500.0,0.00424657,120]
[354835704,1740729097673,-508.02,0.00424657,120]
[354835705,1740729097683,-500.0,0.00424657,120]
[354835706,1740729097692,-677.8,0.00424657,120]
[354835707,1740729097702,-604.99,0.00424657,120]
[354835708,1740729097712,-530.51,0.00424657,120]
[354835709,1740729097722,-745.29,0.00424657,120]
[354835710,1740729097735,-523.1,0.00424657,120]
[354835711,1740729097745,-422.4037883,0.00424657,120]
[354835712,1740729097755,-500.0,0.00424657,120]
[354835713,1740729097765,-748.69,0.00424657,120]
[354835714,1740729097775,-874.05,0.00424657,120]
[354835715,1740729097788,-500.0,0.00424657,120]
[354835716,1740729097799,-1007.44,0.00424657,120]
[354835717,1740729097810,-500.0,0.00424657,120]
[354835718,1740729097819,-500.0,0.00424657,120]
[354835719,1740729097828,-753.37,0.00424657,120]
[354835720,1740729097838,-500.0,0.00424657,120]
[354835721,1740729097848,-530.93,0.00424657,120]
[354835722,1740729097858,-772.32,0.00424657,120]
[354835723,1740729097868,-11613.08,0.00424657,7]
[354835724,1740729097877,-532.21,0.00424657,120]
[354835725,1740729097887,-500.0,0.00424657,120]
[354835726,1740729097898,-1556.94,0.00424657,120]
[354835727,1740729097908,-500.0,0.00424657,120]
[354835728,1740729097918,-500.59,0.00424657,120]
[354835729,1740729097928,-500.0,0.00424657,120]
[354835730,1740729097938,-590.72,0.00424657,120]
[354835731,1740729097947,-4393.23,0.00424657,120]
[354835732,1740729097957,-632.06,0.00424657,120]
[354835733,1740729097967,-500.0,0.00424657,120]
[354835734,1740729097977,-1833.79,0.00424657,120]
[354835735,1740729097986,-500.0,0.00424657,120]
[354835736,1740729097996,-2892.98,0.00424657,120]
[354835737,1740729098005,-1008.73,0.00424657,120]
[354835738,1740729098015,-500.0,0.00424657,120]
[354835739,1740729098024,-793.95,0.00424657,120]
[354835740,1740729098034,-6516.68,0.00424657,120]
[354835741,1740729098047,-500.0,0.00424657,120]
[354835742,1740729098057,-1565.72,0.00424657,120]
[354835743,1740729098067,-1139.58,0.00424657,120]
[354835744,1740729098077,-4010.18,0.00424657,120]
[354835745,1740729098087,-672.53,0.00424657,120]
[354835746,1740729098097,-1915.4,0.00424657,120]
[354835747,1740729098107,-1057.46,0.00424657,120]
[354835748,1740729098117,-588.21,0.00424657,120]
[354835749,1740729098127,-584.47,0.00424657,120]
[354835750,1740729098138,-606.2,0.00424657,120]
[354835751,1740729098147,-1547.61,0.00424657,120]
[354835752,1740729098158,-2877.85,0.00424657,120]
[354835753,1740729098168,-661.27,0.00424657,120]
[354835754,1740729098178,-812.15,0.00424657,120]
[354835755,1740729098189,-500.0,0.00424657,120]
[354835756,1740729098199,-1765.26,0.00424657,120]
[354835757,1740729098209,-899.89,0.00424657,120]
[354835758,1740729098219,-525.54,0.00424657,120]
[354835759,1740729098229,-612.01,0.00424657,120]
[354835760,1740729098239,-521.09259571,0.00424657,120]
[354835761,1740729098248,-1314.56,0.00424657,120]
[354835762,1740729098259,-6198.23,0.00424657,120]
[354835763,1740729098269,-48801.26,0.00424657,7]
[354835764,1740729098279,-500.0,0.00424657,120]
[354835765,1740729098291,-532.68,0.00424657,120]
[354835766,1740729098301,-2002.68,0.00424657,120]
[354835767,1740729098311,-3085.87,0.00424657,120]
[354835768,1740729098321,-1055.5,0.00424657,120]
[354835769,1740729098331,-502.55,0.00424657,120]
[354835770,1740729098340,-500.0,0.00424657,120]
[354835771,1740729098350,-749.41,0.00424657,120]
[354835772,1740729098360,-1132.97,0.00424657,120]
[354835773,1740729098370,-500.0,0.00424657,120]
[354835774,1740729098380,-23601.55,0.00424657,120]
[354835775,1740729098389,-507.38,0.00424657,120]
[354835776,1740729098399,-536.87,0.00424657,120]
[354835777,1740729098409,-746.73,0.00424657,120]
[354835778,1740729098419,-1089.7,0.00424657,120]
[354835779,1740729098429,-2092.1,0.00424657,120]
[354835780,1740729098438,-500.0,0.00424657,120]
[354835781,1740729098448,-387.74725113,0.00424657,120]
[354835782,1740729098458,-1310.9,0.00424657,120]
[354835783,1740729098468,-313.06636506,0.0042526,120]
[354835784,1740729098478,-313.06636506,0.00427205,120]
[354835785,1740729098488,-1522.64736504,0.00435108,28]
[354835786,1740729098498,-44099.91567068,0.004444,120]
[354835787,1740729098508,-493.1,0.00449315,120]
[354835788,1740729098518,-588.70710782,0.00449315,120]
[354835789,1740729098528,-500.0,0.00449315,120]
[354835790,1740729098540,-501.39,0.00449315,120]
[354835791,1740729098674,-500.0,0.00449315,120]
[354835792,1740729098684,-500.0,0.00449315,120]
[354835793,1740729098694,-531.78,0.00449315,120]
[354835794,1740729098705,-270.7,0.00449315,120]
[354835795,1740729098717,-1899.72,0.00449315,120]
[354835796,1740729098727,-864.26,0.00449315,120]
[354835797,1740729098736,-807.93,0.00449315,120]
[354835798,1740729098746,-948.86,0.00449315,120]
[354835799,1740729098755,-500.0,0.00449315,120]
[354835800,1740729098765,-1043.41,0.00449315,120]
[354835801,1740729098775,-500.0,0.00449315,120]
[354835802,1740729098785,-1408.38,0.00449315,120]
[354835803,1740729098797,-871.78,0.00449315,120]
[354835804,1740729098807,-851.03,0.00449315,120]
[354835805,1740729098817,-526.84,0.00449315,120]
[354835806,1740729098827,-694.99,0.00449315,120]
[354835807,1740729098837,-500.0,0.00449315,120]
[354835808,1740729098847,-539.3,0.00449315,120]
[354835809,1740729098857,-938.58,0.00449315,120]
[354835810,1740729098867,-500.0,0.00449315,120]
[354835811,1740729098877,-708.44,0.00449315,120]
[354835812,1740729098887,-520.73,0.00449315,120]
[354835813,1740729098897,-500.0,0.00449315,120]
[354835814,1740729098907,-676.19,0.00449315,120]
[354835815,1740729098916,-1222.28,0.00449315,15]
[354835816,1740729098926,-500.0,0.00449315,120]
[354835817,1740729098936,-508.02,0.00449315,120]
[354835818,1740729098946,-493.05053766,0.00449315,120]
[354835819,1740729098955,-677.8,0.00449315,120]
[354835820,1740729098966,-604.99,0.00449315,120]
[354835821,1740729098975,-530.51,0.00449315,120]
[354835822,1740729098985,-745.29,0.00449315,120]
[354835823,1740729098994,-523.1,0.00449315,120]
[354835824,1740729099004,-500.0,0.00449315,120]
[354835825,1740729099014,-748.69,0.00449315,120]
[354835826,1740729099023,-874.05,0.00449315,120]
[354835827,1740729099033,-500.0,0.00449315,120]
[354835828,1740729099045,-1007.44,0.00449315,120]
[354835829,1740729099054,-500.0,0.00449315,120]
[354835830,1740729099064,-500.0,0.00449315,120]
[354835831,1740729099074,-753.37,0.00449315,120]
[354835832,1740729099083,-500.0,0.00449315,120]
[354835833,1740729099093,-530.93,0.00449315,120]
[354835834,1740729099102,-772.32,0.00449315,120]
[354835835,1740729099112,-11613.08,0.00449315,7]
[354835836,1740729099122,-532.21,0.00449315,120]
[354835837,1740729099131,-500.0,0.00449315,120]
[354835838,1740729099140,-1556.94,0.00449315,120]
[354835839,1740729099150,-500.0,0.00449315,120]
[354835840,1740729099160,-500.59,0.00449315,120]
[354835841,1740729099169,-500.0,0.00449315,120]
[354835842,1740729099179,-590.72,0.00449315,120]
[354835843,1740729099188,-4393.23,0.00449315,120]
[354835844,1740729099198,-632.06,0.00449315,120]
[354835845,1740729099207,-500.0,0.00449315,120]
[354835846,1740729099217,-1833.79,0.00449315,120]
[354835847,1740729099226,-500.0,0.00449315,120]
[354835848,1740729099236,-2892.98,0.00449315,120]
[354835849,1740729099246,-1008.73,0.00449315,120]
[354835850,1740729099256,-500.0,0.00449315,120]
[354835851,1740729099266,-793.95,0.00449315,120]
[354835852,1740729099276,-6516.68,0.00449315,120]
[354835853,1740729099285,-500.0,0.00449315,120]
[354835854,1740729099296,-1565.72,0.00449315,120]
[354835855,1740729099306,-1139.58,0.00449315,120]
[354835856,1740729099315,-4010.18,0.00449315,120]
[354835857,1740729099324,-672.53,0.00449315,120]
[354835858,1740729099333,-1915.4,0.00449315,120]
[354835859,1740729099343,-1057.46,0.00449315,120]
[354835860,1740729099353,-588.21,0.00449315,120]
[354835861,1740729099363,-584.47,0.00449315,120]
[354835862,1740729099373,-606.2,0.00449315,120]
[354835863,1740729099382,-1547.61,0.00449315,120]
[354835864,1740729099392,-2877.85,0.00449315,120]
[354835865,1740729099402,-661.27,0.00449315,120]
[354835866,1740729099412,-812.15,0.00449315,120]
[354835867,1740729099423,-500.0,0.00449315,120]
[354835868,1740729099433,-1765.26,0.00449315,120]
[354835869,1740729099443,-899.89,0.00449315,120]
[354835870,1740729099452,-525.54,0.00449315,120]
[354835871,1740729099463,-612.01,0.00449315,120]
[354835872,1740729099472,-1314.56,0.00449315,120]
[354835873,1740729099482,-6198.23,0.00449315,120]
[354835874,1740729099491,-48801.26,0.00449315,7]
[354835875,1740729099501,-500.0,0.00449315,120]
[354835876,1740729099510,-532.68,0.00449315,120]
[354835877,1740729099520,-2002.68,0.00449315,120]
[354835878,1740729099530,-3085.87,0.00449315,120]
[354835879,1740729099540,-1055.5,0.00449315,120]
[354835880,1740729099550,-502.55,0.00449315,120]
[354835881,1740729099559,-500.0,0.00449315,120]
[354835882,1740729099569,-749.41,0.00449315,120]
[354835883,1740729099579,-1132.97,0.00449315,120]
[354835884,1740729099588,-500.0,0.00449315,120]
[354835885,1740729099598,-23601.55,0.00449315,120]
[354835886,1740729099607,-507.38,0.00449315,120]
[354835887,1740729099618,-536.87,0.00449315,120]
[354835888,1740729099628,-746.73,0.00449315,120]
[354835889,1740729099638,-1089.7,0.00449315,120]
[354835890,1740729099647,-2092.1,0.00449315,120]
[354835891,1740729099656,-500.0,0.00449315,120]
[354835892,1740729099666,-1310.9,0.00449315,120]
[354835893,1740729099675,-20000.0,0.0045,120]
[354835894,1740729099685,-20000.0,0.0045,120]
[354835895,1740729099694,-500.0,0.0045,30]
[354835896,1740729099703,-500.0,0.0045,30]
[354835897,1740729099713,-500.0,0.0045,30]
[354835898,1740729099723,-500.0,0.0045,30]
[354835899,1740729099735,-500.0,0.0045,30]
[354835900,1740729099744,-500.0,0.0045,30]
[354835901,1740729099754,-500.0,0.0045,30]
[354835902,1740729099763,-500.0,0.0045,30]
[354835903,1740729099772,-500.0,0.0045,30]
[354835904,1740729099781,-500.0,0.0045,30]
[354835905,1740729099791,-500.0,0.0045,30]
[354835906,1740729099803,-500.0,0.0045,30]
[354835907,1740729099812,-500.0,0.0045,30]
[354835908,1740729099822,-500.0,0.0045,30]
[354835909,1740729099832,-500.0,0.0045,30]
[354835910,1740729099841,-508.19,0.0045,30]
[354835911,1740729099853,-328.6593025,0.00453016,120]
[354835912,1740729099863,-160.0,0.00457751,120]
[354835913,1740729099872,-3000.0,0.00472,120]
[354835914,1740729099881,-493.1,0.00473972,120]
[354835915,1740729099891,-500.0,0.00473972,120]
[354835916,1740729099901,-501.39,0.00473972,120]
[354835917,1740729099911,-273.6497902,0.00473972,120]
[354835918,1740729099920,-500.0,0.00473972,120]
[354835919,1740729099929,-531.78,0.00473972,120]
[354835920,1740729099939,-1899.72,0.00473972,120]
[354835921,1740729099948,-864.26,0.00473972,120]
[354835922,1740729099957,-807.93,0.00473972,120]
[354835923,1740729099967,-948.86,0.00473972,120]
[354835924,1740729099976,-500.0,0.00473972,120]
[354835925,1740729099986,-1043.41,0.00473972,120]
[354835926,1740729099995,-500.0,0.00473972,120]
[354835927,1740729100005,-1408.38,0.00473972,120]
[354835928,1740729100014,-871.78,0.00473972,120]
[354835929,1740729100023,-851.03,0.00473972,120]
[354835930,1740729100033,-526.84,0.00473972,120]
[354835931,1740729100043,-694.99,0.00473972,120]
[354835932,1740729100053,-500.0,0.00473972,120]
[354835933,1740729100063,-539.3,0.00473972,120]
[354835934,1740729100073,-938.58,0.00473972,120]
[354835935,1740729100082,-500.0,0.00473972,120]
[354835936,1740729100091,-708.44,0.00473972,120]
[354835937,1740729100100,-520.73,0.00473972,120]
[354835938,1740729100111,-500.0,0.00473972,120]
[354835939,1740729100120,-676.19,0.00473972,120]
[354835940,1740729100130,-1222.28,0.00473972,15]
[354835941,1740729100140,-500.0,0.00473972,120]
[354835942,1740729100150,-508.02,0.00473972,120]
[354835943,1740729100159,-677.8,0.00473972,120]
[354835944,1740729100169,-604.99,0.00473972,120]
[354835945,1740729100178,-530.51,0.00473972,120]
[354835946,1740729100188,-745.29,0.00473972,120]
[354835947,1740729100198,-523.1,0.00473972,120]
[354835948,1740729100208,-500.0,0.00473972,120]
[354835949,1740729100217,-748.69,0.00473972,120]
[354835950,1740729100227,-874.05,0.00473972,120]
[354835951,1740729100237,-500.0,0.00473972,120]
[354835952,1740729100246,-1007.44,0.00473972,120]
[354835953,1740729100256,-500.0,0.00473972,120]
[354835954,1740729100265,-500.0,0.00473972,120]
[354835955,1740729100275,-753.37,0.00473972,120]
[354835956,1740729100284,-500.0,0.00473972,120]
[354835957,1740729100296,-530.93,0.00473972,120]
[354835958,1740729100306,-772.32,0.00473972,120]
[354835959,1740729100316,-11613.08,0.00473972,7]
[354835960,1740729100326,-532.21,0.00473972,120]
[354835961,1740729100336,-500.0,0.00473972,120]
[354835962,1740729100346,-1556.94,0.00473972,120]
[354835963,1740729100356,-575.97272173,0.00473972,120]
[354835964,1740729100367,-500.59,0.00473972,120]
[354835965,1740729100377,-500.0,0.00473972,120]
[354835966,1740729100387,-590.72,0.00473972,120]
[354835967,1740729100397,-4393.23,0.00473972,120]
[354835968,1740729100407,-632.06,0.00473972,120]
[354835969,1740729100417,-500.0,0.00473972,120]
[354835970,1740729100427,-1833.79,0.00473972,120]
[354835971,1740729100437,-500.0,0.00473972,120]
[354835972,1740729100447,-2892.98,0.00473972,120]
[354835973,1740729100456,-1008.73,0.00473972,120]
[354835974,1740729100466,-500.0,0.00473972,120]
[354835975,1740729100477,-793.95,0.00473972,120]
[354835976,1740729100486,-6516.68,0.00473972,120]
[354835977,1740729100496,-270.20386471,0.00473972,120]
[354835978,1740729100505,-1565.72,0.00473972,120]
[354835979,1740729100514,-1139.58,0.00473972,120]
[354835980,1740729100523,-4010.18,0.00473972,120]
[354835981,1740729100533,-672.53,0.00473972,120]
[354835982,1740729100546,-1915.4,0.00473972,120]
[354835983,1740729100555,-1057.46,0.00473972,120]
[354835984,1740729100565,-588.21,0.00473972,120]
[354835985,1740729100574,-584.47,0.00473972,120]
[354835986,1740729100584,-606.2,0.00473972,120]
[354835987,1740729100592,-1547.61,0.00473972,120]
[354835988,1740729100602,-2877.85,0.00473972,120]
[354835989,1740729100611,-661.27,0.00473972,120]
[354835990,1740729100620,-812.15,0.00473972,120]
[354835991,1740729100629,-500.0,0.00473972,120]
[354835992,1740729100638,-1765.26,0.00473972,120]
[354835993,1740729100647,-899.89,0.00473972,120]
[354835994,1740729100658,-525.54,0.00473972,120]
[354835995,1740729100668,-612.01,0.00473972,120]
[354835996,1740729100678,-1314.56,0.00473972,120]
[354835997,1740729100688,-6198.23,0.00473972,120]
[354835998,1740729100697,-48801.26,0.00473972,7]
[354835999,1740729100709,-219.49716529,0.00473972,120]
[354836000,1740729100722,-532.68,0.00473972,120]
[354836001,1740729100731,-2002.68,0.00473972,120]
[354836002,1740729100741,-3085.87,0.00473972,120]
[354836003,1740729100751,-1055.5,0.00473972,120]
[354836004,1740729100762,-502.55,0.00473972,120]
[354836005,1740729100772,-500.0,0.00473972,120]
[354836006,1740729100782,-749.41,0.00473972,120]
[354836007,1740729100796,-1132.97,0.00473972,120]
[354836008,1740729100806,-495.24260498,0.00473972,120]
[354836009,1740729100815,-23601.55,0.00473972,120]
[354836010,1740729100825,-507.38,0.00473972,120]
[354836011,1740729100834,-536.87,0.00473972,120]
[354836012,1740729100844,-746.73,0.00473972,120]
[354836013,1740729100854,-1089.7,0.00473972,120]
[354836014,1740729100863,-2092.1,0.00473972,120]
[354836015,1740729100872,-491.75960611,0.00473972,120]
[354836016,1740729100882,-1310.9,0.00473972,120]
[354836017,1740729100891,-1269.80138899,0.00478,120]
[354836018,1740729100901,-152.45,0.004789,87]
[354836019,1740729100910,-152.45,0.004789,87]
[354836020,1740729100920,-152.45,0.004789,87]
[354836021,1740729100929,-152.45,0.004789,87]
[354836022,1740729100939,-152.45,0.004789,87]
[354836023,1740729100948,-152.45,0.004789,87]
[354836024,1740729100958,-152.45,0.004789,87]
[354836025,1740729100967,-152.45,0.004789,87]
[354836026,1740729100977,-152.45,0.004789,87]
[354836027,1740729100986,-152.45,0.004789,87]
[354836028,1740729100996,-152.45,0.004789,87]
[354836029,1740729101005,-152.45,0.004789,87]
[354836030,1740729101014,-152.45,0.004789,87]
[354836031,1740729101023,-152.45,0.004789,87]
[354836032,1740729101033,-12790.25840931,0.0047895,120]
[354836033,1740729101046,-300148.0,0.0048,120]
[354836034,1740729101055,-2808.38223913,0.00487446,120]
[354836035,1740729101065,-40000.0,0.004892,60]
[354836036,1740729101075,-12790.25840931,0.004895,120]
[354836037,1740729101084,-500.0,0.00498373,30]
[354836038,1740729101094,-500.0,0.00498373,30]
[354836039,1740729101104,-500.0,0.00498373,30]
[354836040,1740729101114,-500.0,0.00498373,30]
[354836041,1740729101124,-500.0,0.00498373,30]
[354836042,1740729101134,-566.51811987,0.00498373,30]
[354836043,1740729101144,-1522.64736504,0.0049853,28]
[354836044,1740729101154,-493.1,0.0049863,120]
[354836045,1740729101163,-500.0,0.0049863,120]
[354836046,1740729101173,-501.39,0.0049863,120]
[354836047,1740729101183,-500.0,0.0049863,120]
[354836048,1740729101193,-531.78,0.0049863,120]
[354836049,1740729101203,-1899.72,0.0049863,120]
[354836050,1740729101213,-864.26,0.0049863,120]
[354836051,1740729101222,-807.93,0.0049863,120]
[354836052,1740729101231,-948.86,0.0049863,120]
[354836053,1740729101241,-500.0,0.0049863,120]
[354836054,1740729101251,-1043.41,0.0049863,120]
[354836055,1740729101260,-500.0,0.0049863,120]
[354836056,1740729101271,-1408.38,0.0049863,120]
[354836057,1740729101280,-871.78,0.0049863,120]
[354836058,1740729101291,-851.03,0.0049863,120]
[354836059,1740729101301,-526.84,0.0049863,120]
[354836060,1740729101310,-694.99,0.0049863,120]
[354836061,1740729101320,-500.0,0.0049863,120]
[354836062,1740729101329,-539.3,0.0049863,120]
[354836063,1740729101339,-938.58,0.0049863,120]
[354836064,1740729101349,-349.95,0.0049863,120]
[354836065,1740729101358,-708.44,0.0049863,120]
[354836066,1740729101367,-520.73,0.0049863,120]
[354836067,1740729101378,-608.33940581,0.0049863,120]
[354836068,1740729101387,-676.19,0.0049863,120]
[354836069,1740729101396,-1222.28,0.0049863,15]
[354836070,1740729101406,-500.0,0.0049863,120]
[354836071,1740729101416,-508.02,0.0049863,120]
[354836072,1740729101547,-677.8,0.0049863,120]
[354836073,1740729101557,-604.99,0.0049863,120]
[354836074,1740729101567,-530.51,0.0049863,120]
[354836075,1740729101577,-745.29,0.0049863,120]
[354836076,1740729101587,-523.1,0.0049863,120]
[354836077,1740729101597,-500.0,0.0049863,120]
[354836078,1740729101606,-748.69,0.0049863,120]
[354836079,1740729101616,-874.05,0.0049863,120]
[354836080,1740729101626,-500.0,0.0049863,120]
[354836081,1740729101636,-1007.44,0.0049863,120]
[354836082,1740729101645,-500.0,0.0049863,120]
[354836083,1740729101655,-500.0,0.0049863,120]
[354836084,1740729101665,-753.37,0.0049863,120]
[354836085,1740729101675,-530.93,0.0049863,120]
[354836086,1740729101685,-500.0,0.0049863,120]
[354836087,1740729101695,-772.32,0.0049863,120]
[354836088,1740729101705,-11613.08,0.0049863,7]
[354836089,1740729101716,-532.21,0.0049863,120]
[354836090,1740729101726,-500.0,0.0049863,120]
[354836091,1740729101739,-1556.94,0.0049863,120]
[354836092,1740729101749,-500.59,0.0049863,120]
[354836093,1740729101759,-500.0,0.0049863,120]
[354836094,1740729101770,-590.72,0.0049863,120]
[354836095,1740729101780,-4393.23,0.0049863,120]
[354836096,1740729101790,-632.06,0.0049863,120]
[354836097,1740729101800,-500.0,0.0049863,120]
[354836098,1740729101811,-1833.79,0.0049863,120]
[354836099,1740729101821,-500.0,0.0049863,120]
[354836100,1740729101831,-2892.98,0.0049863,120]
[354836101,1740729101840,-1008.73,0.0049863,120]
[354836102,1740729101850,-480.20194728,0.0049863,120]
[354836103,1740729101860,-793.95,0.0049863,120]
[354836104,1740729101870,-6516.68,0.0049863,120]
[354836105,1740729101879,-1565.72,0.0049863,120]
[354836106,1740729101889,-1139.58,0.0049863,120]
[354836107,1740729101899,-4010.18,0.0049863,120]
[354836108,1740729101908,-672.53,0.0049863,120]
[354836109,1740729101918,-1915.4,0.0049863,120]
[354836110,1740729101928,-1057.46,0.0049863,120]
[354836111,1740729101938,-588.21,0.0049863,120]
[354836112,1740729101948,-584.47,0.0049863,120]
[354836113,1740729101958,-606.2,0.0049863,120]
[354836114,1740729101968,-1547.61,0.0049863,120]
[354836115,1740729101979,-2877.85,0.0049863,120]
[354836116,1740729101989,-661.27,0.0049863,120]
[354836117,1740729101999,-812.15,0.0049863,120]
[354836118,1740729102008,-464.76260907,0.0049863,120]
[354836119,1740729102018,-1765.26,0.0049863,120]
[354836120,1740729102027,-899.89,0.0049863,120]
[354836121,1740729102038,-525.54,0.0049863,120]
[354836122,1740729102051,-612.01,0.0049863,120]
[354836123,1740729102061,-1314.56,0.0049863,120]
[354836124,1740729102071,-6198.23,0.0049863,120]
[354836125,1740729102081,-48801.26,0.0049863,7]
[354836126,1740729102091,-532.68,0.0049863,120]
[354836127,1740729102101,-2002.68,0.0049863,120]
[354836128,1740729102111,-3085.87,0.0049863,120]
[354836129,1740729102122,-1055.5,0.0049863,120]
[354836130,1740729102131,-502.55,0.0049863,120]
[354836131,1740729102141,-500.0,0.0049863,120]
[354836132,1740729102152,-749.41,0.0049863,120]
[354836133,1740729102161,-1132.97,0.0049863,120]
[354836134,1740729102171,-23601.55,0.0049863,120]
[354836135,1740729102181,-507.38,0.0049863,120]
[354836136,1740729102191,-536.87,0.0049863,120]
[354836137,1740729102201,-746.73,0.0049863,120]
[354836138,1740729102211,-1089.7,0.0049863,120]
[354836139,1740729102221,-2092.1,0.0049863,120]
[354836140,1740729102231,-1310.9,0.0049863,120]
[354836141,1740729102241,-4740.66817266,0.005,120]
[354836142,1740729102251,-20000.0,0.005,120]
[354836143,1740729102260,-200.0,0.005,120]
[354836144,1740729102270,-20000.0,0.005,120]
[354836145,1740729102281,-1000.0,0.005,120]
[354836146,1740729102294,-100000.0,0.005,120]
[354836147,1740729102304,-12790.25840931,0.0050195,120]
[354836148,1740729102314,-1000.0,0.00502,120]
[354836149,1740729102324,-4000.0,0.0051,120]
[354836150,1740729102334,-12790.25840931,0.00510195,120]
[354836151,1740729102344,-1000.0,0.00522,120]
[354836152,1740729102354,-102895.67559227,0.005222,120]